bitfinex/quotes_ETHUSD_20241018
["timestamp","ask_amount","ask_price","bid_price","bid_amount"]
[1729283838108,0.78742734,2644.8,2643.9,0.55]
[1729283838309,0.08051437,2644.5,2643.9,0.55]
[1729283838509,0.78742734,2644.8,2644.0,0.4334]
[1729283838685,0.08046156,2644.4,2644.0,0.4334]
[1729283838884,0.78742734,2644.8,2644.0,0.4334]
[1729283839086,0.08040875,2644.3,2644.0,0.4334]
[1729283839290,0.78742734,2644.8,2644.0,0.4334]
[1729283839488,0.08035594,2644.2,2644.0,0.4334]
[1729283839702,0.78742734,2644.8,2644.0,0.4334]
[1729283839933,0.08030312,2644.1,2644.0,0.9834]
[1729283840126,0.78742734,2644.8,2644.0,0.9834]
[1729283840297,0.08030312,2644.1,2644.0,0.9834]
[1729283840503,0.78742734,2644.8,2644.0,0.9834]
[1729283840702,0.08030312,2644.1,2644.0,0.9834]
[1729283840914,0.78742734,2644.8,2644.0,0.9834]
[1729283841227,0.08030312,2644.1,2644.0,0.9834]
[1729283841532,0.78742734,2644.8,2644.0,0.9834]
[1729283841733,0.08030312,2644.1,2643.9,0.55]
[1729283841907,0.78742734,2644.8,2643.9,0.55]
[1729283842098,0.0802503,2644.0,2643.9,0.55]
[1729283842322,0.78742734,2644.8,2643.9,0.55]
[1729283842520,0.0802503,2644.0,2643.9,0.55]
[1729283842749,0.78742734,2644.8,2643.9,0.55]
[1729283843038,0.0802503,2644.0,2643.9,0.55]
[1729283843188,0.98428418,2644.8,2643.9,0.55]
[1729283843589,0.08061996,2644.7,2643.9,0.55]
[1729283845438,0.08061996,2644.7,2644.0,0.7899]
[1729283845586,0.08061996,2644.7,2644.1,0.55]
[1729283845786,0.78742734,2644.9,2644.2,3.0]
[1729283846129,0.19685684,2644.8,2644.1,0.55]
[1729283846303,0.27489033,2644.8,2644.1,0.55]
[1729283849736,0.07803349,2644.8,2644.1,0.55]
[1729283850135,0.78742734,2644.9,2644.1,0.55]
[1729283850336,0.0779807,2644.7,2644.1,0.55]
[1729283850566,0.78742734,2644.9,2644.1,0.55]
[1729283850716,0.0779279,2644.6,2644.1,0.55]
[1729283850922,0.78742734,2644.9,2644.1,0.55]
[1729283851123,0.0779319,2644.5,2644.1,0.55]
[1729283851339,0.78742734,2644.9,2644.1,0.55]
[1729283851537,0.0778791,2644.4,2644.1,0.55]
[1729283851755,0.78742734,2644.9,2644.1,0.55]
[1729283851935,0.07782629,2644.3,2644.1,0.55]
[1729283852239,0.78742734,2644.9,2644.1,0.55]
[1729283852439,0.19685684,2644.8,2644.1,0.55]
[1729283852642,0.27494713,2644.8,2644.1,0.55]
[1729283853055,0.07809029,2644.8,2643.7,0.8278]
[1729283853869,1.72579415,2644.8,2643.7,0.8278]
[1729283854074,0.07809029,2644.8,2643.4,0.57507466]
[1729283854225,1.64770386,2644.6,2643.5,8.1218]
[1729283854553,1.64770386,2644.6,2643.1,1.04291329]
[1729283854554,1.64770386,2644.2,2643.1,0.45140571]
[1729283854756,1.64770386,2644.2,2643.1,1.28320571]
[1729283854943,0.07773149,2644.1,2643.1,1.28320571]
[1729283855871,0.07773149,2644.1,2643.1,1.85828037]
[1729283856241,0.07773149,2644.1,2643.1,5.10008325]
[1729283857875,0.07773149,2644.1,2643.1,1.52500859]
[1729283859665,0.78742734,2644.4,2643.1,1.52500859]
[1729283859862,0.8651427,2644.3,2643.1,1.52500859]
[1729283861185,0.07771536,2644.3,2643.1,1.52500859]
[1729283861389,1.06977107,2644.3,2643.1,1.28320571]
[1729283861588,0.78742734,2644.2,2643.1,1.28320571]
[1729283862092,0.07760973,2644.1,2643.1,1.28320571]
[1729283862265,0.86503707,2644.1,2643.1,1.28320571]
[1729283862470,0.07760973,2644.1,2643.1,1.28320571]
[1729283862791,0.30269037,2644.1,2643.1,1.28320571]
[1729283863594,0.07760973,2644.1,2643.3,0.8085]
[1729283863890,0.07760973,2644.1,2643.4,3.0]
[1729283864099,0.99205571,2644.3,2643.5,0.8085]
[1729283864299,0.07750277,2644.0,2643.5,0.8085]
[1729283864499,0.78742734,2644.2,2643.5,0.8085]
[1729283864705,0.07744995,2643.9,2643.5,0.8085]
[1729283865060,0.07739712,2643.8,2643.5,0.8085]
[1729283865263,0.78742734,2644.0,2643.5,0.8085]
[1729283865456,0.07744995,2643.9,2643.5,0.8085]
[1729283865690,1.00474701,2644.1,2643.5,0.8085]
[1729283865873,0.07739712,2643.8,2643.5,0.8085]
[1729283866072,1.00601614,2644.0,2643.5,0.8085]
[1729283866283,0.07744995,2643.9,2643.5,0.8085]
[1729283867509,1.00474701,2644.1,2643.5,0.8085]
[1729283867909,0.07740795,2643.8,2643.5,0.8085]
[1729283868118,1.00474701,2644.1,2643.5,0.8085]
[1729283868280,0.29610241,2644.0,2643.5,0.8085]
[1729283868476,0.07735512,2643.7,2643.5,0.8085]
[1729283868676,0.78742734,2644.1,2643.5,0.8085]
[1729283869305,0.07751361,2644.0,2643.5,0.8085]
[1729283871870,0.86494095,2644.0,2643.5,0.8085]
[1729283872071,1.06954915,2644.0,2643.5,0.8085]
[1729283872607,0.86494095,2644.0,2643.5,0.8085]
[1729283875692,0.07751361,2644.0,2643.5,0.8085]
[1729283875920,0.86494095,2644.0,2643.5,0.8085]
[1729283878544,0.07751361,2644.0,2643.5,0.8085]
[1729283878839,0.86494095,2644.0,2643.5,0.8085]
[1729283885337,2.51270005,2644.0,2643.5,0.8085]
[1729283885584,0.78742734,2643.9,2643.5,0.8085]
[1729283885885,0.07741335,2643.8,2643.2,0.8263]
[1729283888488,0.86484069,2643.8,2643.2,0.8263]
[1729283888644,0.07741335,2643.8,2643.2,0.8263]
[1729283888976,0.86484069,2643.8,2643.2,0.8263]
[1729283893603,1.4443872,2643.8,2643.2,0.8263]
[1729283896093,0.65695986,2643.8,2643.2,0.8263]
[1729283896276,2.30471896,2643.8,2643.2,0.8263]
[1729283896480,1.72517245,2643.8,2643.2,0.8263]
[1729283896880,0.07741335,2643.8,2643.2,0.8263]
[1729283898740,1.6477591,2644.1,2643.2,0.8263]
[1729283898934,0.07734159,2643.7,2643.2,0.8263]
[1729283899264,1.6477591,2644.1,2643.2,0.8263]
[1729283899444,0.35207247,2644.0,2643.2,0.8263]
[1729283899745,0.35207247,2643.9,2643.4,0.7813]
[1729283899948,0.07749737,2644.0,2643.4,0.7813]
[1729283900252,0.07744455,2643.9,2643.4,0.7813]
[1729283900605,1.85238747,2644.3,2643.4,0.7813]
[1729283900837,0.42981643,2644.2,2643.4,0.7813]
[1729283901020,0.35220802,2644.1,2643.4,3.7813]
[1729283901222,0.20462837,2644.3,2643.4,3.7813]
[1729283901223,0.42971079,2644.0,2643.5,0.43313]
[1729283901426,0.35220994,2643.9,2643.4,0.7813]
[1729283901627,0.07739712,2643.8,2643.4,0.7813]
[1729283901824,1.85238747,2644.3,2643.4,0.7813]
[1729283902019,0.42983914,2644.2,2643.4,0.7813]
[1729283902344,0.3522145,2644.1,2643.4,0.7813]
[1729283902519,0.3522145,2644.0,2643.4,0.7813]
[1729283902703,0.42973351,2644.0,2643.4,0.7813]
[1729283902906,0.35220681,2643.9,2643.4,0.7813]
[1729283903110,0.78908139,2643.6,2643.4,0.7813]
[1729283903344,0.78908139,2643.5,2643.4,0.7813]
[1729283903648,0.07725484,2643.5,2643.4,0.7813]
[1729283903953,0.07725484,2643.5,2643.2,0.7565]
[1729283904152,0.78918866,2643.4,2643.2,0.7565]
[1729283904312,0.8664435,2643.5,2643.2,0.7565]
[1729283904512,0.07716812,2643.3,2643.2,0.7565]
[1729283905964,0.78918866,2643.4,2643.2,0.7565]
[1729283906263,0.07716812,2643.3,2643.2,0.7565]
[1729283906967,0.86635678,2643.3,2643.2,0.7565]
[1729283907672,0.07716812,2643.3,2643.2,0.7565]
[1729283908484,0.07716812,2643.3,2643.1,0.45140571]
[1729283909314,0.07716812,2643.3,2643.2,0.8024]
[1729283909876,0.78918866,2643.5,2643.2,0.8024]
[1729283910188,0.78918866,2643.4,2643.2,0.8024]
[1729283910389,0.07689969,2643.3,2643.2,0.8024]
[1729283911072,0.78918866,2643.5,2643.2,0.8024]
[1729283911279,0.07689969,2643.3,2643.2,0.8024]
[1729283911514,0.78918866,2643.5,2643.2,0.8024]
[1729283911700,0.07689969,2643.3,2643.2,0.8024]
[1729283912008,0.07689969,2643.3,2643.2,3.8024]
[1729283912309,0.78918866,2643.5,2643.2,3.8024]
[1729283912513,0.07689969,2643.3,2643.2,3.8024]
[1729283912807,0.78918866,2643.5,2643.2,3.8024]
[1729283913232,0.07695254,2643.4,2643.2,3.8024]
[1729283913418,0.8661412,2643.4,2643.2,0.8024]
[1729283913626,0.07695254,2643.4,2643.2,3.8024]
[1729283913943,0.28192887,2643.4,2642.9,0.8024]
[1729283914125,1.6477591,2643.3,2642.8,0.02268987]
[1729283914298,1.07111753,2643.4,2642.5,0.8024]
[1729283914502,0.78918866,2642.8,2642.5,0.8024]
[1729283914928,0.07634164,2642.7,2642.5,0.8024]
[1729283915312,0.78918866,2642.8,2642.5,0.8024]
[1729283915852,0.07634164,2642.7,2642.5,0.8024]
[1729283916010,0.78918866,2642.8,2642.5,0.8024]
[1729283916213,0.07618458,2642.7,2642.5,0.8024]
[1729283916415,0.78918866,2642.9,2642.5,0.8024]
[1729283916630,0.07623745,2642.8,2642.5,0.8024]
[1729283917705,0.07623745,2642.8,2642.6,0.55]
[1729283917932,0.78918866,2643.2,2642.8,3.0]
[1729283918542,0.78918866,2643.3,2642.8,3.0]
[1729283918942,0.78918866,2643.3,2642.7,0.7989]
[1729283919518,0.78918866,2643.4,2642.7,0.7989]
[1729283919726,0.78918866,2643.3,2642.8,0.55]
[1729283920051,0.78918866,2643.4,2642.8,0.73989]
[1729283920258,0.78918866,2643.4,2642.9,0.8218]
[1729283920806,0.78918866,2643.6,2643.0,0.55]
[1729283921006,0.78918866,2643.7,2643.1,0.8218]
[1729283921748,0.06476913,2643.6,2643.1,0.8218]
[1729283924787,0.85395779,2643.6,2643.1,0.8218]
[1729283925192,0.06476913,2643.6,2643.1,0.8218]
[1729283925494,0.85395779,2643.6,2643.1,0.8218]
[1729283925787,0.06476913,2643.6,2643.1,0.8218]
[1729283926551,0.85395779,2643.6,2643.1,0.8218]
[1729283926952,0.06476913,2643.6,2643.1,0.8218]
[1729283927505,0.85395779,2643.6,2643.1,0.8218]
[1729283930155,0.06476913,2643.6,2643.1,0.8218]
[1729283930357,0.85395779,2643.6,2643.1,0.8218]
[1729283935290,0.06476913,2643.6,2643.1,0.8218]
[1729283935493,0.85395779,2643.6,2643.1,0.8218]
[1729283947781,0.06476913,2643.6,2643.1,0.8218]
[1729283947976,0.85395779,2643.6,2643.1,0.8218]
[1729283957049,0.85395779,2643.6,2643.4,0.55]
[1729283957203,0.06476913,2643.6,2643.5,1.3516]
[1729283957634,0.78918866,2644.0,2643.7,0.55]
[1729283958349,0.78918866,2644.1,2643.7,0.55]
[1729283960819,0.78918866,2644.0,2643.6,0.8016]
[1729283961434,0.78918866,2643.9,2643.6,0.8016]
[1729283962260,0.78918866,2644.0,2643.6,0.8016]
[1729283962559,0.78918866,2643.9,2643.6,0.8016]
[1729283963524,0.78918866,2643.8,2643.6,0.8016]
[1729283966527,0.05657904,2643.7,2643.6,0.8016]
[1729283966920,0.78918866,2643.8,2643.6,0.8016]
[1729283967164,0.05657904,2643.7,2643.6,0.8016]
[1729283967532,0.20293898,2643.7,2643.4,0.7532]
[1729283967733,0.20293898,2643.7,2643.0,0.7532]
[1729283967734,0.78918866,2643.5,2643.0,0.7532]
[1729283967955,0.78918866,2643.4,2643.0,0.7532]
[1729283968155,0.84560371,2643.4,2643.0,0.7532]
[1729283968375,1.20634257,2643.4,2643.0,0.7532]
[1729283968517,0.78918866,2643.2,2642.8,0.7926]
[1729283968982,0.05443585,2643.1,2642.8,0.7926]
[1729283974070,0.78918866,2643.3,2642.8,0.7926]
[1729283974378,1.18362209,2643.4,2642.8,0.7926]
[1729283974379,0.84353615,2643.2,2642.8,0.7926]
[1729283975030,0.05434749,2643.2,2642.8,0.7926]
[1729283975227,0.78918866,2643.3,2642.8,0.7926]
[1729283975462,0.05259147,2643.2,2642.8,0.7926]
[1729283975772,1.14428601,2643.3,2642.8,0.7926]
[1729283975976,0.05255258,2643.1,2642.8,0.7926]
[1729283976278,0.05249972,2643.0,2642.8,0.7926]
[1729283976430,0.78918866,2643.3,2642.8,0.7926]
[1729283976629,0.05261942,2643.2,2642.8,0.7926]
[1729283976831,0.98646974,2643.3,2642.8,0.7926]
[1729283977048,0.0526334,2643.2,2642.8,0.7926]
[1729283977245,0.98646974,2643.3,2642.8,0.7926]
[1729283977441,0.05271871,2643.2,2642.8,0.7926]
[1729283977642,0.98646974,2643.3,2642.8,0.7926]
[1729283977843,1.05891655,2643.2,2642.5,0.55]
[1729283978043,0.78918866,2643.1,2642.5,0.55]
[1729283978290,0.05252304,2643.0,2642.5,0.55]
[1729283978484,0.8417117,2643.0,2642.5,0.55]
[1729283978997,0.8417117,2643.0,2642.2,0.8217]
[1729283979194,0.78918866,2642.9,2642.3,0.8217]
[1729283979499,0.05252304,2643.0,2642.3,0.8217]
[1729283979500,0.05227014,2642.8,2642.3,0.8217]
[1729283979791,0.78918866,2642.9,2642.3,0.8217]
[1729283980145,0.05227014,2642.8,2642.3,0.8217]
[1729283980586,0.05227014,2642.8,2642.5,0.55]
[1729283980832,0.05227014,2642.8,2642.7,0.8156]
[1729283980991,0.78918866,2643.4,2642.9,3.0]
[1729283981145,0.78918866,2643.4,2643.1,0.8156]
[1729283981346,0.78918866,2643.5,2643.1,0.8156]
[1729283981565,0.05228907,2643.3,2643.1,0.8156]
[1729283981753,0.78918866,2643.5,2643.1,0.8156]
[1729283981971,0.05223622,2643.2,2643.1,0.8156]
[1729283982197,0.78918866,2643.5,2643.1,0.8156]
[1729283982404,0.05223622,2643.2,2643.1,0.8156]
[1729283982877,0.78918866,2643.6,2643.1,0.8156]
[1729283983077,0.05244383,2643.5,2643.1,0.8156]
[1729283990819,0.05244383,2643.5,2642.7,0.55]
[1729283991023,0.05244383,2643.5,2643.0,0.8165]
[1729283992803,0.84163249,2643.5,2643.0,0.8165]
[1729283993236,0.05244383,2643.5,2643.0,0.8165]
[1729283993416,0.84163249,2643.5,2643.0,0.8165]
[1729283994499,1.04415795,2643.5,2643.0,0.8165]
[1729283994824,0.25496929,2643.5,2643.0,0.8165]
[1729283995148,1.18035636,2643.7,2643.0,0.8165]
[1729283995317,0.78690424,2643.5,2643.0,0.8165]
[1729283995506,0.05247548,2643.4,2643.0,0.8165]
[1729283996807,0.78690424,2643.6,2643.0,0.8165]
[1729283997147,0.78690424,2643.5,2643.0,0.8165]
[1729283997368,0.83943257,2643.5,2643.0,0.8165]
[1729283997502,0.05252833,2643.5,2643.0,0.8165]
[1729283998299,0.83943257,2643.5,2643.0,0.8165]
[1729283998546,0.05252833,2643.5,2643.0,0.8165]
[1729284000664,0.83943257,2643.5,2643.0,0.8165]
[1729284001169,0.05252833,2643.5,2643.0,0.8165]
[1729284001520,0.83943257,2643.5,2643.0,0.8165]
[1729284002033,0.05252833,2643.5,2643.0,0.8165]
[1729284002364,0.83943257,2643.5,2643.0,0.8165]
[1729284002518,0.83943257,2643.5,2642.9,0.55]
[1729284002519,0.05252833,2643.5,2642.9,0.55]
[1729284002718,0.83943257,2643.5,2642.9,0.55]
[1729284003040,1.04141146,2643.5,2642.8,0.7509]
[1729284003444,0.78690424,2643.4,2642.8,0.7509]
[1729284003917,0.05242264,2643.3,2642.8,0.7509]
[1729284004544,0.83932688,2643.3,2642.8,0.7509]
[1729284004961,0.05242264,2643.3,2642.8,0.7509]
[1729284005147,0.83932688,2643.3,2642.8,0.7509]
[1729284007027,1.06149309,2643.3,2642.5,0.55]
[1729284007243,0.78690424,2643.2,2642.5,0.55]
[1729284007557,0.05227606,2643.1,2642.5,0.55]
[1729284010542,0.05227606,2643.1,2642.7,0.55]
[1729284010941,0.05227606,2643.1,2642.6,0.55]
[1729284011243,0.78690424,2643.3,2642.8,0.55]
[1729284011439,0.05160225,2643.2,2642.8,0.55]
[1729284011687,0.78690424,2643.4,2642.8,0.55]
[1729284011986,0.83855934,2643.3,2642.8,0.55]
[1729284012758,0.78690424,2643.2,2642.8,0.55]
[1729284012963,0.0516551,2643.3,2643.1,0.7699]
[1729284013142,1.9672606,2644.0,2643.2,2.44538707]
[1729284013374,0.78690424,2644.1,2643.4,0.55]
[1729284013549,1.57380849,2644.4,2643.4,0.55]
[1729284013550,0.78690424,2644.3,2643.7,0.7699]
[1729284013746,0.78690424,2644.5,2643.8,2.20306372]
[1729284013947,0.78690424,2644.5,2644.0,0.55]
[1729284014247,0.78690424,2644.6,2644.3,0.7699]
[1729284014544,0.78690424,2644.9,2644.4,0.55]
[1729284014759,1.18035636,2645.1,2644.4,0.55]
[1729284014760,1.9672606,2645.1,2644.4,0.55]
[1729284014992,0.78690424,2645.1,2644.4,0.55]
[1729284015285,0.78690424,2645.2,2644.4,0.55]
[1729284015484,0.78690424,2645.4,2644.3,0.8058]
[1729284015685,0.78690424,2645.5,2644.4,0.55]
[1729284015888,0.78690424,2645.5,2644.6,0.55]
[1729284016088,0.78690424,2645.4,2644.6,0.55]
[1729284016246,0.78690424,2645.5,2644.6,0.55]
[1729284016448,1.25934293,2645.6,2644.6,0.55]
[1729284018259,0.78690424,2645.6,2644.6,0.55]
[1729284018718,0.78690424,2645.6,2644.6,1.66273038]
[1729284018909,0.78690424,2645.6,2644.8,0.55]
[1729284019631,1.57380849,2645.9,2644.8,0.55]
[1729284019834,0.59142988,2646.0,2644.8,0.55]
[1729284020038,0.80614299,2645.9,2644.8,0.55]
[1729284020452,1.59223619,2645.9,2644.8,0.55]
[1729284020655,1.77056968,2646.0,2645.0,3.55]
[1729284020656,0.59142988,2646.0,2645.0,3.55]
[1729284020952,0.7860932,2645.8,2644.5,0.8205]
[1729284021127,0.7860932,2645.7,2644.5,0.8205]
[1729284021322,1.35033743,2645.6,2644.5,0.8205]
[1729284021558,0.7860932,2645.6,2644.5,0.8205]
[1729284022285,0.7860932,2645.6,2644.6,0.55]
[1729284022439,0.7860932,2645.7,2644.6,0.55]
[1729284023833,4.46330251,2645.6,2644.4,0.45118666]
[1729284024036,4.46330251,2645.4,2643.7,0.8205]
[1729284024264,0.7860932,2645.3,2643.7,0.8205]
[1729284026021,0.7860932,2645.3,2643.8,0.55]
[1729284026403,0.04304403,2645.2,2643.8,0.55]
[1729284026765,0.04304403,2645.2,2643.9,0.7812]
[1729284026969,0.87295775,2645.2,2644.0,0.55]
[1729284028350,0.87295775,2645.2,2644.2,0.55]
[1729284028556,0.87295775,2645.2,2644.3,0.8167]
[1729284029055,0.87295775,2645.2,2644.4,0.55]
[1729284032019,0.91198827,2645.2,2644.4,0.55]
[1729284032216,0.91198827,2645.2,2644.3,0.8167]
[1729284045357,0.91198827,2645.2,2643.8,1.3189]
[1729284045560,1.69808147,2645.2,2644.0,0.55]
[1729284046105,0.91198827,2645.2,2644.0,0.55]
[1729284047147,0.91198827,2645.2,2644.1,0.8241]
[1729284050763,1.69808147,2645.2,2644.1,0.8241]
[1729284050965,0.91198827,2645.2,2644.1,0.8241]
[1729284051170,0.20925322,2645.1,2644.1,1.047599]
[1729284051493,0.08231284,2645.0,2644.1,1.047599]
[1729284054375,0.86840604,2645.0,2644.1,1.047599]
[1729284055471,0.7860932,2644.9,2644.1,1.047599]
[1729284055770,0.08221023,2644.8,2644.1,1.047599]
[1729284056536,0.86830343,2644.8,2644.1,1.047599]
[1729284057504,0.7860932,2644.7,2644.1,1.047599]
[1729284057898,0.08207756,2644.6,2644.1,1.047599]
[1729284058116,0.7860932,2644.7,2644.1,1.047599]
[1729284058338,0.86817076,2644.6,2644.1,1.047599]
[1729284061104,0.86817076,2644.6,2644.2,0.55]
[1729284061631,0.08207756,2644.6,2644.2,0.55]
[1729284063413,0.86817076,2644.6,2644.2,0.55]
[1729284063644,0.08207756,2644.6,2644.2,0.55]
[1729284064751,0.86817076,2644.6,2644.2,0.55]
[1729284068020,0.7860932,2644.5,2644.2,0.55]
[1729284068550,0.08195854,2644.4,2644.2,0.55]
[1729284069752,0.08195854,2644.4,2644.3,0.8012]
[1729284069906,0.08195854,2644.4,2644.3,2.38541212]
[1729284070109,0.7860932,2644.9,2644.3,1.91209111]
[1729284070315,0.7860932,2644.9,2644.4,0.55]
[1729284070538,0.08222932,2644.8,2644.4,0.55]
[1729284071049,0.7860932,2644.9,2644.4,0.55]
[1729284071050,0.08224352,2644.7,2644.4,0.55]
[1729284071469,0.7860932,2644.9,2644.4,0.55]
[1729284071673,0.0821922,2644.6,2644.4,0.55]
[1729284072031,0.7860932,2644.9,2644.4,0.55]
[1729284072231,0.08214088,2644.5,2644.4,0.55]
[1729284072731,0.7860932,2644.9,2644.4,0.55]
[1729284073059,0.08229484,2644.8,2644.4,0.55]
[1729284073260,0.08229484,2644.8,2644.2,1.3799]
[1729284073464,0.7860932,2645.0,2644.8,3.0]
[1729284073977,0.7860932,2645.0,2644.4,0.55]
[1729284074281,0.7860932,2645.0,2644.6,0.55]
[1729284074575,0.7860932,2645.0,2644.8,0.55]
[1729284074733,0.7860932,2645.1,2644.8,0.55]
[1729284074932,0.7860932,2645.1,2644.8,3.55]
[1729284075132,0.7860932,2645.1,2644.8,0.98385]
[1729284075371,0.7860932,2645.1,2644.8,0.55]
[1729284075584,0.7860932,2645.3,2645.0,0.55]
[1729284075740,0.7860932,2645.4,2645.1,0.7736]
[1729284075942,1.1791398,2645.5,2645.2,0.55]
[1729284075943,0.7860932,2645.5,2645.2,0.55]
[1729284076143,0.7860932,2645.7,2645.2,0.55]
[1729284077284,0.7860932,2645.8,2645.2,0.55]
[1729284077446,0.7860932,2645.9,2645.4,0.55]
[1729284077648,0.7860932,2646.0,2645.4,0.55]
[1729284077946,0.7860932,2645.9,2645.4,0.55]
[1729284078150,0.7860932,2646.0,2645.4,0.55]
[1729284079586,0.7860932,2646.1,2645.4,0.55]
[1729284079816,0.7860932,2646.0,2645.4,0.55]
[1729284080272,0.7860932,2646.1,2645.4,0.55]
[1729284085814,1.13983514,2646.1,2645.3,0.76]
[1729284086425,0.08051833,2646.0,2645.3,0.76]
[1729284092643,0.08051833,2646.0,2645.5,0.7837]
[1729284092943,0.7860932,2646.3,2645.5,0.7837]
[1729284093114,0.08043146,2645.9,2645.6,0.55]
[1729284093432,0.7860932,2646.3,2645.6,0.55]
[1729284093433,0.08039936,2645.8,2645.7,0.8092]
[1729284093737,0.7860932,2646.3,2645.7,0.8092]
[1729284093997,0.9826165,2646.3,2645.7,0.8092]
[1729284094155,0.86669762,2646.2,2645.3,0.55]
[1729284094538,0.86669762,2646.2,2645.5,0.55]
[1729284094847,0.08060442,2646.2,2645.5,0.55]
[1729284095944,0.86669762,2646.2,2645.5,0.55]
[1729284096304,0.08060442,2646.2,2645.5,0.55]
[1729284097143,0.86669762,2646.2,2645.5,0.55]
[1729284097454,0.08060442,2646.2,2645.5,0.55]
[1729284099873,0.08060442,2646.2,2645.6,0.8155]
[1729284104937,0.86669762,2646.2,2645.6,0.8155]
[1729284106136,0.7860932,2646.1,2645.5,0.55]
[1729284106344,0.86688459,2646.1,2645.5,0.55]
[1729284107071,0.08079139,2646.1,2645.5,0.55]
[1729284108278,0.86688459,2646.1,2645.5,0.55]
[1729284110196,0.86688459,2646.1,2645.6,0.8249]
[1729284110510,0.86688459,2646.1,2645.9,3.0]
[1729284110511,0.08079139,2646.1,2645.9,3.0]
[1729284110654,0.08079139,2646.1,2646.0,0.38249]
[1729284110832,1.1791398,2646.6,2645.8,0.8249]
[1729284110833,0.7860932,2646.4,2645.8,0.8249]
[1729284111170,0.07552383,2646.3,2645.8,0.8249]
[1729284111586,0.7860932,2646.5,2645.8,0.8249]
[1729284111740,0.07547257,2646.2,2645.9,3.0]
[1729284111935,0.7860932,2646.5,2645.8,0.8249]
[1729284112470,0.07557508,2646.4,2645.9,3.0]
[1729284112675,0.07557508,2646.4,2645.8,0.8249]
[1729284113579,0.07557508,2646.4,2645.9,3.0]
[1729284113967,0.07557508,2646.4,2645.8,0.8249]
[1729284114148,0.07557508,2646.4,2645.9,3.0]
[1729284114543,0.07557508,2646.4,2645.8,0.8249]
[1729284114747,0.07557508,2646.4,2645.9,3.0]
[1729284115149,0.86166828,2646.4,2645.8,0.8249]
[1729284115383,0.86166828,2646.4,2645.9,3.0]
[1729284115577,0.86166828,2646.4,2645.8,0.8249]
[1729284115780,0.7860932,2646.3,2645.6,0.8249]
[1729284116171,0.07547257,2646.2,2645.6,0.8249]
[1729284116794,0.07547257,2646.2,2645.7,0.55]
[1729284117290,0.07542131,2646.1,2645.8,0.8307]
[1729284117798,0.7860932,2646.4,2645.8,0.8307]
[1729284118251,0.07552383,2646.3,2645.9,0.55]
[1729284119397,0.86161703,2646.3,2645.9,0.55]
[1729284119549,0.07552383,2646.3,2645.9,0.55]
[1729284119748,0.07552383,2646.3,2646.0,0.7816]
[1729284120157,0.7860932,2646.4,2646.0,0.7816]
[1729284120363,0.07553827,2646.2,2646.0,0.7816]
[1729284120551,0.7860932,2646.4,2646.0,0.7816]
[1729284120748,0.07557187,2646.1,2646.0,0.7816]
[1729284120995,0.7860932,2646.4,2646.0,0.7816]
[1729284121167,0.07557187,2646.1,2646.0,0.7816]
[1729284121367,0.7860932,2646.4,2646.0,0.7816]
[1729284121567,0.07557187,2646.1,2646.0,0.7816]
[1729284121763,0.7860932,2646.4,2646.0,0.7816]
[1729284122082,0.07567439,2646.3,2646.0,0.7816]
[1729284123855,0.7860932,2646.4,2646.0,0.7816]
[1729284124194,0.07567439,2646.3,2646.0,0.7816]
[1729284124564,0.86176759,2646.3,2646.0,0.7816]
[1729284125070,0.07567439,2646.3,2646.0,0.7816]
[1729284126194,0.86176759,2646.3,2646.0,0.7816]
[1729284126393,0.07567439,2646.3,2646.0,0.7816]
[1729284127095,0.86176759,2646.3,2645.7,0.8007]
[1729284127305,0.7860932,2646.2,2645.7,0.8007]
[1729284127811,0.07378187,2646.1,2645.7,0.8007]
[1729284128473,0.7860932,2646.3,2645.7,0.8007]
[1729284128713,0.07373061,2646.0,2645.7,0.8007]
[1729284128914,0.7860932,2646.3,2645.7,0.8007]
[1729284129073,0.07367934,2645.9,2645.7,0.8007]
[1729284129407,0.7860932,2646.3,2645.7,0.8007]
[1729284129607,0.07362807,2645.8,2645.7,1.3507]
[1729284129808,0.7860932,2646.3,2645.7,1.3507]
[1729284130306,0.85992633,2646.2,2645.7,1.3507]
[1729284130510,0.07383313,2646.2,2645.7,1.3507]
[1729284131905,0.85992633,2646.2,2645.7,1.3507]
[1729284132879,0.07383313,2646.2,2645.7,1.3507]
[1729284134916,0.85992633,2646.2,2645.7,1.3507]
[1729284140984,0.85992633,2646.2,2645.5,0.55]
[1729284140985,0.7860932,2646.1,2645.5,0.55]
[1729284141211,0.7860932,2646.0,2645.5,0.55]
[1729284141424,0.7860932,2645.9,2645.5,0.55]
[1729284141801,0.0728733,2645.8,2645.5,0.55]
[1729284144203,0.7860932,2646.0,2645.5,0.55]
[1729284144404,0.07275086,2645.7,2645.5,0.55]
[1729284144573,0.7860932,2646.0,2645.5,0.55]
[1729284144778,0.07269958,2645.6,2645.5,0.55]
[1729284144978,0.7860932,2646.0,2645.5,0.55]
[1729284145180,0.07269958,2645.6,2645.5,0.55]
[1729284145423,0.7860932,2646.0,2645.5,0.55]
[1729284145886,0.07285341,2645.9,2645.5,0.55]
[1729284146494,0.85894661,2645.9,2645.5,0.55]
[1729284159694,0.85894661,2645.9,2645.6,0.7709]
[1729284170597,0.7860932,2645.8,2645.6,0.7709]
[1729284170901,0.07031731,2645.7,2645.6,0.7709]
[1729284171271,0.7860932,2645.8,2645.6,0.7709]
[1729284171470,0.07031731,2645.7,2645.6,0.7709]
[1729284171663,0.7860932,2645.8,2645.6,0.7709]
[1729284171868,0.07031731,2645.7,2645.6,0.7709]
[1729284172069,0.7860932,2645.8,2645.6,0.7709]
[1729284172313,0.07031731,2645.7,2645.6,0.7709]
[1729284173225,0.7860932,2645.8,2645.6,0.7709]
[1729284173383,0.07031731,2645.7,2645.6,0.7709]
[1729284173795,0.7860932,2645.8,2645.6,0.7709]
[1729284174019,0.07031731,2645.7,2645.6,0.7709]
[1729284174320,0.7860932,2645.8,2645.6,0.7709]
[1729284174483,0.07031731,2645.7,2645.6,0.7709]
[1729284174814,0.7860932,2645.8,2645.6,0.7709]
[1729284174974,0.07031731,2645.7,2645.6,0.7709]